fUSD/lending_fUSD_20260529
["ID","MTS","AMOUNT","RATE_DAILY","PERIOD"]
[423306010,1780044645000,-150.0,0.00019,2]
[423306012,1780044645000,-150.0,0.00019,2]
[423306013,1780044645000,-151.0,0.00019,4]
[423306014,1780044645000,-6409.50833466,0.00019,2]
[423306020,1780044645000,-167.89454849,0.00019057,30]
[423306019,1780044645000,-167.89454848,0.00019057,7]
[423306021,1780044645000,-331.78092459,0.00019059,2]
[423306035,1780044645000,-151.0,0.00019178,2]
[423306023,1780044645000,-150.0,0.00019178,2]
[423306024,1780044645000,-150.0,0.00019178,2]
[423306025,1780044645000,-150.0,0.00019178,2]
[423306026,1780044645000,-211.67678875,0.00019178,2]
[423306027,1780044645000,-160.93281423,0.00019178,2]
[423306028,1780044645000,-151.0,0.00019178,2]
[423306030,1780044645000,-151.0,0.00019178,2]
[423306032,1780044645000,-151.0,0.00019178,2]
[423306029,1780044645000,-151.0,0.00019178,2]
[423306031,1780044645000,-151.0,0.00019178,2]
[423306033,1780044645000,-151.0,0.00019178,2]
[423306034,1780044645000,-274.073972,0.00019178,2]
[423306008,1780044645000,-2473.93281645,0.00019,2]
[423306022,1780044645000,-666.34,0.00019178,2]
[423306009,1780044645000,-3542.82750643,0.00019,2]
[423305993,1780044645000,-932.0,0.000189,2]
[423306007,1780044645000,-151.0,0.00019,2]
[423305979,1780044645000,-1117.84015556,0.000187,2]
[423306037,1780044645000,-151.0,0.00019178,2]
[423305980,1780044645000,-1173.77768977,0.000187,2]
[423305981,1780044645000,-3000.0,0.00018726,7]
[423305984,1780044645000,-200.0,0.00018847,2]
[423305983,1780044645000,-1000.0,0.00018847,2]
[423305982,1780044645000,-1124.0,0.00018813,2]
[423305986,1780044645000,-163.0,0.0001888,2]
[423305987,1780044645000,-776.16201403,0.000189,2]
[423305985,1780044645000,-167.19164087,0.0001885,2]
[423305991,1780044645000,-2513.0,0.000189,2]
[423305989,1780044645000,-619.0,0.000189,2]
[423305990,1780044645000,-1074.0,0.000189,2]
[423305988,1780044645000,-165.0,0.000189,7]
[423305992,1780044645000,-1007.0,0.000189,2]
[423305994,1780044645000,-418.0,0.000189,2]
[423305996,1780044645000,-261.64052426,0.00018944,2]
[423305995,1780044645000,-668.0,0.00018932,2]
[423305997,1780044645000,-166.66,0.00018988,2]
[423306002,1780044645000,-1098.34796509,0.00019,2]
[423306000,1780044645000,-2258.71730431,0.00019,2]
[423306003,1780044645000,-1220.315358,0.00019,2]
[423305998,1780044645000,-3265.75,0.00019,2]
[423305999,1780044645000,-107631.8384297,0.00019,2]
[423306001,1780044645000,-1220.315358,0.00019,2]
[423306004,1780044645000,-1220.315358,0.00019,2]
[423306006,1780044645000,-151.0,0.00019,2]
[423306005,1780044645000,-1220.315358,0.00019,2]
[423305978,1780044645000,-166.75,0.00018626,2]
[423306036,1780044645000,-151.0,0.00019178,2]
[423306039,1780044645000,-151.0,0.00019178,2]
[423306071,1780044645000,-167.89454848,0.00019688,7]
[423306075,1780044645000,-3365.0,0.00019874,2]
[423306072,1780044645000,-167.89454849,0.00019688,30]
[423306077,1780044645000,-7274.84,0.00019968,2]
[423306074,1780044645000,-3000.0,0.00019822,7]
[423306073,1780044645000,-1124.0,0.00019803,2]
[423306076,1780044645000,-1213.83,0.00019968,2]
[423306079,1780044645000,-1176.0,0.0002,2]
[423306078,1780044645000,-598.0,0.0002,2]
[423306080,1780044645000,-155.81,0.0002,2]
[423306082,1780044645000,-1907.0,0.0002,2]
[423306081,1780044645000,-150.37,0.0002,2]
[423306070,1780044645000,-194.33511515,0.00019555,2]
[423306084,1780044645000,-202.5,0.0002,5]
[423306088,1780044645000,-1313.10154104,0.0002,2]
[423306085,1780044645000,-1018.0,0.0002,2]
[423306083,1780044645000,-185.0,0.0002,9]
[423306087,1780044645000,-214.84700566,0.0002,2]
[423306086,1780044645000,-5284.78473627,0.0002,2]
[423306090,1780044645000,-538.79370888,0.0002,7]
[423306092,1780044645000,-1059.93391054,0.0002,2]
[423306093,1780044645000,-2647.83579359,0.0002,2]
[423306091,1780044645000,-200.0,0.0002,2]
[423306094,1780044645000,-1679.69,0.0002,30]
[423306095,1780044645000,-164.0,0.0002,5]
[423306038,1780044645000,-151.0,0.00019178,2]
[423306089,1780044645000,-2992.47080596,0.0002,7]
[423306067,1780044645000,-900.0,0.00019453,2]
[423306096,1780044645000,-734.397117,0.0002,2]
[423306066,1780044645000,-709.45851209,0.00019425,2]
[423306068,1780044645000,-473.65312221,0.00019456,2]
[423306040,1780044645000,-151.0,0.00019178,2]
[423306043,1780044645000,-151.0,0.00019178,2]
[423306041,1780044645000,-151.0,0.00019178,2]
[423306044,1780044645000,-151.0,0.00019178,2]
[423306045,1780044645000,-151.0,0.00019178,2]
[423306047,1780044645000,-151.0,0.00019178,2]
[423306052,1780044645000,-151.0,0.00019178,2]
[423306049,1780044645000,-151.0,0.00019178,2]
[423306046,1780044645000,-151.0,0.00019178,2]
[423306048,1780044645000,-151.0,0.00019178,2]
[423306050,1780044645000,-151.0,0.00019178,2]
[423306051,1780044645000,-151.0,0.00019178,2]
[423306042,1780044645000,-151.0,0.00019178,2]
[423306055,1780044645000,-151.0,0.00019178,2]
[423306069,1780044645000,-152.0,0.00019555,2]
[423306061,1780044645000,-151.0,0.00019178,2]
[423306062,1780044645000,-151.0,0.00019178,2]
[423306065,1780044645000,-996.0,0.00019411,2]
[423306053,1780044645000,-151.0,0.00019178,2]
[423306060,1780044645000,-151.0,0.00019178,2]
[423306064,1780044645000,-500.0,0.00019274,7]
[423306058,1780044645000,-151.0,0.00019178,2]
[423306059,1780044645000,-151.0,0.00019178,2]
[423306054,1780044645000,-151.0,0.00019178,2]
[423306057,1780044645000,-151.0,0.00019178,2]
[423306056,1780044645000,-151.0,0.00019178,2]
[423306063,1780044645000,-2129.0,0.00019207,2]
[423306140,1780044646000,-151.0,0.00020427,2]
[423306137,1780044646000,-151.0,0.00020427,2]
[423306133,1780044646000,-2000.0,0.00020344,2]
[423306136,1780044646000,-151.0,0.00020427,2]
[423306128,1780044646000,-167.89454848,0.0002032,7]
[423306132,1780044646000,-985.84,0.00020344,2]
[423306131,1780044646000,-173.72,0.00020344,2]
[423306134,1780044646000,-986.01589701,0.00020352,2]
[423306129,1780044646000,-167.89454849,0.0002032,30]
[423306130,1780044646000,-1023.59,0.00020344,2]
[423306135,1780044646000,-6453.0,0.00020378,2]
[423306097,1780044646000,-400.0,0.0002,2]
[423306142,1780044646000,-151.0,0.00020427,2]
[423306143,1780044646000,-151.0,0.00020427,2]
[423306141,1780044646000,-151.0,0.00020427,2]
[423306147,1780044646000,-151.0,0.00020427,2]
[423306145,1780044646000,-151.0,0.00020427,2]
[423306146,1780044646000,-221.88543241,0.00020427,2]
[423306144,1780044646000,-151.0,0.00020427,2]
[423306148,1780044646000,-2080.17592889,0.00020427,2]
[423306151,1780044646000,-1428.38747117,0.00020427,2]
[423306149,1780044646000,-151.0,0.00020427,2]
[423306150,1780044646000,-230.09519341,0.00020427,2]
[423306153,1780044646000,-238.60871557,0.00020427,2]
[423306127,1780044646000,-151.0,0.000203,2]
[423306138,1780044646000,-151.0,0.00020427,2]
[423306125,1780044646000,-151.0,0.000203,2]
[423306110,1780044646000,-1135.0,0.0002,2]
[423306122,1780044646000,-300.0,0.000201,10]
[423306098,1780044646000,-1444.0,0.0002,2]
[423306100,1780044646000,-975.0,0.0002,2]
[423306099,1780044646000,-1851.0,0.0002,2]
[423306101,1780044646000,-3779.0,0.0002,2]
[423306102,1780044646000,-3443.0,0.0002,2]
[423306103,1780044646000,-523.0,0.0002,2]
[423306104,1780044646000,-3303.0,0.0002,2]
[423306105,1780044646000,-151.0,0.0002,2]
[423306106,1780044646000,-151.0,0.0002,2]
[423306109,1780044646000,-4840.0,0.0002,2]
[423306112,1780044646000,-194.674,0.0002,2]
[423306108,1780044646000,-1272.0,0.0002,2]
[423306111,1780044646000,-200.0,0.0002,10]
[423306107,1780044646000,-151.0,0.0002,2]
[423306113,1780044646000,-150.0,0.0002,20]
[423306116,1780044646000,-9667.36,0.0002,2]
[423306114,1780044646000,-6959.0,0.0002,2]
[423306115,1780044646000,-151.0,0.0002,4]
[423306117,1780044646000,-200.0,0.0002,2]
[423306118,1780044646000,-2524.0,0.0002005,2]
[423306119,1780044646000,-640.0,0.0002005,2]
[423306120,1780044646000,-1164.24302105,0.000201,30]
[423306123,1780044646000,-166.84,0.00020163,2]
[423306121,1780044646000,-248.72,0.000201,2]
[423306124,1780044646000,-3265.75,0.000203,2]
[423306126,1780044646000,-151.0,0.000203,2]
[423306155,1780044646000,-247.43723804,0.00020427,2]
[423306139,1780044646000,-151.0,0.00020427,2]
[423306158,1780044646000,-266.08633524,0.00020427,2]
[423306189,1780044646000,-12740.72,0.00020951,2]
[423306190,1780044646000,-22021.31,0.00020951,2]
[423306191,1780044646000,-9999.99,0.00020951,2]
[423306187,1780044646000,-2286.17,0.00020951,2]
[423306192,1780044646000,-150.99,0.00020951,2]
[423306193,1780044646000,-151.0,0.00020951,2]
[423306194,1780044646000,-151.0,0.00020951,2]
[423306197,1780044646000,-151.0,0.00020951,2]
[423306195,1780044646000,-151.0,0.00020951,2]
[423306199,1780044646000,-2157.14243826,0.00020975,2]
[423306201,1780044646000,-300.0,0.00021,7]
[423306200,1780044646000,-1481.2378076,0.00020975,2]
[423306202,1780044646000,-1234.43275857,0.00021,7]
[423306203,1780044646000,-160.0,0.00021,7]
[423306204,1780044646000,-200.0,0.00021,2]
[423306206,1780044646000,-1444.0,0.00021,2]
[423306205,1780044646000,-200.0,0.00021,2]
[423306207,1780044646000,-1851.0,0.00021,2]
[423306208,1780044646000,-975.0,0.00021,2]
[423306210,1780044646000,-3443.0,0.00021,2]
[423306209,1780044646000,-3779.0,0.00021,2]
[423306211,1780044646000,-523.0,0.00021,2]
[423306213,1780044646000,-1272.0,0.00021,2]
[423306212,1780044646000,-3303.0,0.00021,2]
[423306152,1780044646000,-151.0,0.00020427,2]
[423306186,1780044646000,-3000.0,0.00020918,7]
[423306188,1780044646000,-9999.99,0.00020951,2]
[423306157,1780044646000,-151.0,0.00020427,2]
[423306184,1780044646000,-1124.0,0.00020846,2]
[423306185,1780044646000,-3620.0,0.00020878,2]
[423306154,1780044646000,-151.0,0.00020427,2]
[423306161,1780044646000,-151.0,0.00020427,2]
[423306159,1780044646000,-151.0,0.00020427,2]
[423306162,1780044646000,-275.93152964,0.00020427,2]
[423306163,1780044646000,-286.14099624,0.00020427,2]
[423306164,1780044646000,-151.0,0.00020427,2]
[423306165,1780044646000,-151.0,0.00020427,2]
[423306169,1780044646000,-319.09232179,0.00020427,2]
[423306167,1780044646000,-151.0,0.00020427,2]
[423306168,1780044646000,-307.70715698,0.00020427,2]
[423306166,1780044646000,-296.7282131,0.00020427,2]
[423306170,1780044646000,-3210.0,0.00020514,2]
[423306156,1780044646000,-256.59241585,0.00020427,2]
[423306173,1780044646000,-150.0,0.0002058,2]
[423306174,1780044646000,-150.0,0.0002058,2]
[423306179,1780044646000,-150.0,0.00020682,2]
[423306181,1780044646000,-150.0,0.00020682,2]
[423306182,1780044646000,-150.0,0.00020682,2]
[423306180,1780044646000,-150.0,0.00020682,2]
[423306183,1780044646000,-900.0,0.00020823,2]
[423306178,1780044646000,-150.0,0.00020682,2]
[423306176,1780044646000,-500.0,0.00020628,2]
[423306172,1780044646000,-150.0,0.0002058,2]
[423306171,1780044646000,-279.96,0.00020548,20]
[423306175,1780044646000,-150.25518464,0.0002058,2]
[423306177,1780044646000,-2000.0,0.00020628,2]
[423306253,1780044647000,-166.0,0.00021918,2]
[423306252,1780044647000,-166.0,0.00021918,2]
[423306248,1780044647000,-151.0,0.00021918,2]
[423306247,1780044647000,-151.0,0.00021918,2]
[423306249,1780044647000,-272.807055,0.00021918,2]
[423306250,1780044647000,-5000.0,0.00021918,2]
[423306245,1780044647000,-151.0,0.00021918,2]
[423306244,1780044647000,-169.465949,0.00021915,2]
[423306251,1780044647000,-166.0,0.00021918,2]
[423306241,1780044647000,-1007.0,0.000219,2]
[423306246,1780044647000,-151.0,0.00021918,2]
[423306255,1780044647000,-166.0,0.00021918,2]
[423306259,1780044647000,-172.0,0.00021918,2]
[423306256,1780044647000,-166.0,0.00021918,2]
[423306262,1780044647000,-800.0,0.00021918,2]
[423306257,1780044647000,-166.0,0.00021918,2]
[423306261,1780044647000,-800.0,0.00021918,2]
[423306260,1780044647000,-1242.69,0.00021918,2]
[423306264,1780044647000,-800.0,0.00021918,2]
[423306263,1780044647000,-800.0,0.00021918,2]
[423306265,1780044647000,-800.0,0.00021918,2]
[423306266,1780044647000,-800.0,0.00021918,2]
[423306268,1780044647000,-800.0,0.00021918,2]
[423306243,1780044647000,-418.0,0.000219,2]
[423306258,1780044647000,-166.0,0.00021918,2]
[423306242,1780044647000,-932.0,0.000219,2]
[423306227,1780044647000,-640.0,0.0002105,2]
[423306237,1780044647000,-277.45,0.00021842,13]
[423306216,1780044647000,-6111.0,0.00021,2]
[423306217,1780044647000,-15000.0,0.00021,2]
[423306215,1780044647000,-15000.0,0.00021,2]
[423306214,1780044647000,-1135.0,0.00021,2]
[423306218,1780044647000,-6111.0,0.00021,2]
[423306222,1780044647000,-1420.150098,0.00021,2]
[423306221,1780044647000,-1420.150098,0.00021,2]
[423306219,1780044647000,-10000.0000001,0.00021,2]
[423306220,1780044647000,-1420.150098,0.00021,2]
[423306223,1780044647000,-1420.150098,0.00021,2]
[423306225,1780044647000,-203.16999128,0.00021,3]
[423306224,1780044647000,-151.0,0.00021,4]
[423306229,1780044647000,-3265.75,0.000213,2]
[423306270,1780044647000,-1124.0,0.00021943,2]
[423306226,1780044647000,-2524.0,0.0002105,2]
[423306228,1780044647000,-500.0,0.0002124,14]
[423306230,1780044647000,-500.0,0.00021466,7]
[423306234,1780044647000,-166.84,0.000217,2]
[423306232,1780044647000,-1536.04360648,0.00021523,2]
[423306231,1780044647000,-2236.95670847,0.00021523,2]
[423306233,1780044647000,-986.01589701,0.00021526,2]
[423306235,1780044647000,-9667.36,0.00021786,2]
[423306239,1780044647000,-1074.0,0.000219,2]
[423306236,1780044647000,-277.45,0.00021842,13]
[423306238,1780044647000,-619.0,0.000219,2]
[423306240,1780044647000,-2513.0,0.000219,2]
[423306267,1780044647000,-800.0,0.00021918,2]
[423306254,1780044647000,-166.0,0.00021918,2]
[423306269,1780044647000,-150.0,0.00021918,2]
[423306302,1780044647000,-487.99666683,0.00022407,2]
[423306303,1780044647000,-487.99666682,0.00022407,2]
[423306301,1780044647000,-2000.0,0.000224,7]
[423306304,1780044647000,-487.99666682,0.00022407,2]
[423306307,1780044647000,-4117.19,0.000225,14]
[423306306,1780044647000,-10262.14423114,0.000225,2]
[423306305,1780044647000,-9035.0,0.00022416,2]
[423306308,1780044647000,-1286.41,0.00022522,2]
[423306309,1780044647000,-1271.17,0.00022562,5]
[423306312,1780044647000,-985.84,0.00022604,2]
[423306310,1780044647000,-1023.59,0.00022604,2]
[423306313,1780044647000,-2000.0,0.00022604,2]
[423306296,1780044647000,-2319.72410669,0.00022071,2]
[423306315,1780044647000,-2405.55389863,0.00022619,2]
[423306319,1780044647000,-2500.0,0.00022752,2]
[423306320,1780044647000,-1100.0,0.00022752,2]
[423306317,1780044647000,-2549.0,0.00022687,2]
[423306318,1780044647000,-986.01589701,0.00022701,2]
[423306314,1780044647000,-1651.81367706,0.00022619,2]
[423306321,1780044647000,-1350.0,0.00022752,7]
[423306323,1780044647000,-200.0,0.00022875,2]
[423306324,1780044647000,-3134.02970953,0.00022916,2]
[423306325,1780044647000,-488.57832118,0.00022916,2]
[423306322,1780044647000,-709.45851209,0.00022763,2]
[423306272,1780044647000,-150.0,0.00022,10]
[423306326,1780044647000,-1241.40376008,0.00022921,2]
[423306316,1780044647000,-152.0,0.00022665,3]
[423306300,1780044647000,-277.45,0.0002239,13]
[423306311,1780044647000,-173.72,0.00022604,2]
[423306299,1780044647000,-308.24,0.000222,2]
[423306271,1780044647000,-3651.0,0.00021984,2]
[423306298,1780044647000,-3035.0,0.00022154,2]
[423306274,1780044647000,-8799.75309931,0.00022,2]
[423306277,1780044647000,-450.0,0.00022,2]
[423306276,1780044647000,-1000.0,0.00022,3]
[423306275,1780044647000,-1313.68301142,0.00022,10]
[423306279,1780044647000,-1851.0,0.00022,2]
[423306278,1780044647000,-1444.0,0.00022,2]
[423306281,1780044647000,-3779.0,0.00022,2]
[423306280,1780044647000,-975.0,0.00022,2]
[423306282,1780044647000,-3443.0,0.00022,2]
[423306283,1780044647000,-523.0,0.00022,2]
[423306284,1780044647000,-3303.0,0.00022,2]
[423306273,1780044647000,-219.57370564,0.00022,20]
[423306286,1780044647000,-1135.0,0.00022,2]
[423306297,1780044647000,-200.0,0.00022082,2]
[423306295,1780044647000,-1592.87721992,0.00022071,2]
[423306294,1780044647000,-640.0,0.0002205,2]
[423306291,1780044647000,-172.0,0.00022,2]
[423306293,1780044647000,-2524.0,0.0002205,2]
[423306290,1780044647000,-1115.39,0.00022,2]
[423306289,1780044647000,-151.0,0.00022,4]
[423306285,1780044647000,-1272.0,0.00022,2]
[423306287,1780044647000,-167.0,0.00022,2]
[423306288,1780044647000,-163.0,0.00022,2]
[423306292,1780044647000,-3000.0,0.00022014,7]
[423306361,1780044648000,-151.0,0.00023,4]
[423306368,1780044648000,-3000.0,0.0002311,7]
[423306358,1780044648000,-1272.0,0.00023,2]
[423306359,1780044648000,-1135.0,0.00023,2]
[423306360,1780044648000,-1000.0,0.00023,3]
[423306362,1780044648000,-1000.0,0.00023,3]
[423306363,1780044648000,-163.0,0.00023014,7]
[423306364,1780044648000,-172.0,0.00023014,7]
[423306365,1780044648000,-2531.1280114,0.0002305,2]
[423306367,1780044648000,-1124.0,0.00023098,2]
[423306369,1780044648000,-181.79498314,0.0002314,2]
[423306374,1780044648000,-152.0,0.00023291,5]
[423306372,1780044648000,-150.0,0.00023288,2]
[423306371,1780044648000,-2494.55939288,0.00023167,2]
[423306375,1780044648000,-500.0,0.00023431,2]
[423306373,1780044648000,-500.0,0.00023288,7]
[423306383,1780044648000,-200.0,0.00023668,2]
[423306376,1780044648000,-2000.0,0.00023431,2]
[423306380,1780044648000,-152.0,0.00023604,6]
[423306377,1780044648000,-4835.0,0.00023463,7]
[423306378,1780044648000,-1172.97139128,0.000235,2]
[423306327,1780044648000,-277.45,0.00022937,13]
[423306381,1780044648000,-1866.15517111,0.00023644,2]
[423306356,1780044648000,-523.0,0.00023,2]
[423306370,1780044648000,-1712.93078311,0.00023167,2]
[423306353,1780044648000,-975.0,0.00023,2]
[423306328,1780044648000,-152.0,0.00022978,4]
[423306354,1780044648000,-3779.0,0.00023,2]
[423306382,1780044648000,-500.0,0.00023658,7]
[423306331,1780044648000,-150.0,0.00023,2]
[423306329,1780044648000,-150.0,0.00023,2]
[423306332,1780044648000,-150.0,0.00023,2]
[423306330,1780044648000,-150.0,0.00023,2]
[423306333,1780044648000,-150.0,0.00023,2]
[423306334,1780044648000,-2500.0,0.00023,20]
[423306337,1780044648000,-150.0,0.00023,2]
[423306336,1780044648000,-517.4481778,0.00023,20]
[423306335,1780044648000,-150.0,0.00023,2]
[423306338,1780044648000,-150.0,0.00023,2]
[423306343,1780044648000,-1000.0,0.00023,14]
[423306355,1780044648000,-3443.0,0.00023,2]
[423306340,1780044648000,-150.0,0.00023,2]
[423306342,1780044648000,-150.0,0.00023,2]
[423306339,1780044648000,-150.0,0.00023,2]
[423306344,1780044648000,-354.51006341,0.00023,2]
[423306345,1780044648000,-150.0,0.00023,2]
[423306347,1780044648000,-150.0,0.00023,2]
[423306349,1780044648000,-394.73,0.00023,20]
[423306346,1780044648000,-150.0,0.00023,2]
[423306348,1780044648000,-150.0,0.00023,2]
[423306351,1780044648000,-1444.0,0.00023,2]
[423306350,1780044648000,-1018.67,0.00023,2]
[423306352,1780044648000,-1851.0,0.00023,2]
[423306357,1780044648000,-3303.0,0.00023,2]
[423306341,1780044648000,-150.0,0.00023,2]
[423306385,1780044648000,-150.0,0.00023682,2]
[423306366,1780044648000,-644.90733716,0.0002305,2]
[423306387,1780044648000,-150.0,0.00023682,2]
[423306418,1780044648000,-516.3,0.00024368,7]
[423306419,1780044648000,-200.0,0.00024461,2]
[423306420,1780044648000,-152.0,0.00024544,9]
[423306421,1780044648000,-500.0,0.0002459,14]
[423306424,1780044648000,-1242.69,0.00024658,6]
[423306425,1780044648000,-1000.0,0.00024658,2]
[423306422,1780044648000,-10675.0,0.00024657,2]
[423306423,1780044648000,-167.46223961,0.00024658,2]
[423306426,1780044648000,-151.613884,0.00024658,2]
[423306427,1780044648000,-151.613884,0.00024658,2]
[423306429,1780044648000,-151.613884,0.00024658,2]
[423306428,1780044648000,-151.613884,0.00024658,2]
[423306417,1780044648000,-1124.0,0.00024313,2]
[423306430,1780044648000,-151.613884,0.00024658,2]
[423306432,1780044648000,-151.613884,0.00024658,2]
[423306434,1780044648000,-151.613884,0.00024658,2]
[423306435,1780044648000,-151.613884,0.00024658,2]
[423306436,1780044648000,-151.613884,0.00024658,2]
[423306437,1780044648000,-151.613884,0.00024658,2]
[423306433,1780044648000,-151.613884,0.00024658,2]
[423306438,1780044648000,-151.613884,0.00024658,2]
[423306440,1780044648000,-151.613884,0.00024658,2]
[423306441,1780044648000,-151.613884,0.00024658,2]
[423306442,1780044648000,-151.613884,0.00024658,2]
[423306439,1780044648000,-151.613884,0.00024658,2]
[423306384,1780044648000,-150.0,0.00023682,2]
[423306431,1780044648000,-151.613884,0.00024658,2]
[423306416,1780044648000,-277.45,0.00024307,13]
[423306379,1780044648000,-9667.36,0.00023572,2]
[423306410,1780044648000,-4758.5,0.00024174,2]
[423306415,1780044648000,-2682.57183977,0.00024263,2]
[423306386,1780044648000,-150.0,0.00023682,2]
[423306389,1780044648000,-2586.85809042,0.00023715,2]
[423306388,1780044648000,-1776.30922209,0.00023715,2]
[423306391,1780044648000,-152.0,0.00023917,7]
[423306394,1780044648000,-1256.3545371,0.00024,2]
[423306393,1780044648000,-10623.93862822,0.00024,14]
[423306392,1780044648000,-1039.02378003,0.00024,2]
[423306397,1780044648000,-1444.0,0.00024,2]
[423306395,1780044648000,-323.0,0.00024,2]
[423306400,1780044648000,-3779.0,0.00024,2]
[423306402,1780044648000,-523.0,0.00024,2]
[423306399,1780044648000,-975.0,0.00024,2]
[423306390,1780044648000,-986.01589701,0.00023875,2]
[423306398,1780044648000,-1851.0,0.00024,2]
[423306401,1780044648000,-3443.0,0.00024,2]
[423306412,1780044648000,-3000.0,0.00024206,7]
[423306414,1780044648000,-1842.0326633,0.00024263,2]
[423306411,1780044648000,-3265.75,0.000242,7]
[423306407,1780044648000,-2000.0,0.0002416,7]
[423306409,1780044648000,-7274.84,0.00024174,2]
[423306405,1780044648000,-1135.0,0.00024,2]
[423306404,1780044648000,-1272.0,0.00024,2]
[423306406,1780044648000,-151.0,0.00024,4]
[423306403,1780044648000,-3303.0,0.00024,2]
[423306396,1780044648000,-500.0,0.00024,2]
[423306408,1780044648000,-173.0,0.00024164,7]
[423306413,1780044648000,-152.0,0.0002423,8]
[423306471,1780044649000,-300.0,0.00024799,10]
[423306475,1780044649000,-300.0,0.00024799,10]
[423306470,1780044649000,-300.0,0.00024799,10]
[423306469,1780044649000,-273.29872968,0.00024783,2]
[423306468,1780044649000,-342.26868169,0.00024783,2]
[423306472,1780044649000,-666.0,0.00024799,2]
[423306474,1780044649000,-666.0,0.00024799,2]
[423306473,1780044649000,-300.0,0.00024799,10]
[423306480,1780044649000,-666.0,0.00024799,2]
[423306479,1780044649000,-300.0,0.00024799,10]
[423306478,1780044649000,-666.0,0.00024799,2]
[423306481,1780044649000,-300.0,0.00024799,10]
[423306482,1780044649000,-300.0,0.00024799,10]
[423306483,1780044649000,-300.0,0.00024799,10]
[423306487,1780044649000,-151.0,0.000248,2]
[423306485,1780044649000,-666.0,0.00024799,2]
[423306484,1780044649000,-300.0,0.00024799,10]
[423306486,1780044649000,-240713.0,0.000248,7]
[423306466,1780044649000,-798.44,0.00024658,2]
[423306477,1780044649000,-300.0,0.00024799,10]
[423306467,1780044649000,-534.02035546,0.00024677,2]
[423306451,1780044649000,-500.0,0.00024658,2]
[423306464,1780044649000,-580.54494355,0.00024658,2]
[423306444,1780044649000,-151.613884,0.00024658,2]
[423306445,1780044649000,-151.613887,0.00024658,2]
[423306443,1780044649000,-151.613884,0.00024658,2]
[423306447,1780044649000,-500.0,0.00024658,7]
[423306446,1780044649000,-150.0,0.00024658,2]
[423306449,1780044649000,-500.0,0.00024658,2]
[423306448,1780044649000,-500.0,0.00024658,2]
[423306450,1780044649000,-500.0,0.00024658,2]
[423306452,1780044649000,-500.0,0.00024658,2]
[423306463,1780044649000,-500.0,0.00024658,2]
[423306489,1780044649000,-151.0,0.000248,2]
[423306454,1780044649000,-500.0,0.00024658,2]
[423306456,1780044649000,-500.0,0.00024658,2]
[423306455,1780044649000,-500.0,0.00024658,2]
[423306461,1780044649000,-500.0,0.00024658,2]
[423306459,1780044649000,-500.0,0.00024658,2]
[423306457,1780044649000,-500.0,0.00024658,2]
[423306460,1780044649000,-500.0,0.00024658,2]
[423306465,1780044649000,-695.44,0.00024658,2]
[423306462,1780044649000,-500.0,0.00024658,2]